bitfinex/quotes_BTCUSD_20250328
["timestamp","ask_amount","ask_price","bid_price","bid_amount"]
[1743136943432,0.02134721,86462.0,86459.0,0.0001693]
[1743136943882,0.02423855,86461.0,86459.0,0.0001693]
[1743136944084,0.0725806,86460.0,86459.0,0.0001693]
[1743136944303,0.4579795,86460.0,86459.0,0.0001693]
[1743136944505,0.4535806,86460.0,86459.0,0.0001693]
[1743136944708,0.45508738,86460.0,86459.0,0.0001693]
[1743136945325,0.0813,86443.0,86425.0,0.231413]
[1743136945480,0.00061069,86440.0,86424.0,0.231417]
[1743136945687,0.08335252,86439.0,86404.0,0.01140521]
[1743136945886,0.02401612,86428.0,86405.0,0.011573]
[1743136946093,0.00289285,86427.0,86415.0,0.23144]
[1743136946297,0.00061069,86428.0,86414.0,0.231443]
[1743136946499,0.00061069,86428.0,86403.0,0.231472]
[1743136946500,0.02273081,86416.0,86403.0,0.231472]
[1743136946695,0.0774,86415.0,86390.0,0.011575]
[1743136946903,0.0497,86413.0,86392.0,0.231501]
[1743136947110,0.05031069,86413.0,86388.0,0.0001691]
[1743136947311,0.00061069,86410.0,86388.0,0.0001691]
[1743136947563,0.00061069,86410.0,86395.0,0.231493]
[1743136947963,0.02125625,86409.0,86392.0,0.231501]
[1743136948164,0.02372535,86408.0,86397.0,0.231488]
[1743136948362,0.02372535,86408.0,86401.0,0.231477]
[1743136948636,0.02372535,86408.0,86403.0,0.231472]
[1743136948851,0.02372535,86408.0,86407.0,0.562253]
[1743136949259,0.02125625,86409.0,86408.0,0.25757385]
[1743136949485,0.01815572,86412.0,86408.0,0.25757385]
[1743136949685,0.01815572,86412.0,86411.0,0.19663768]
[1743136949925,0.02270531,86415.0,86414.0,0.231443]
[1743136950140,0.07631069,86438.0,86426.0,0.01157]
[1743136950377,0.0308,86430.0,86426.0,0.02611085]
[1743136950703,0.0308,86430.0,86426.0,0.01454085]
[1743136950905,0.0308,86430.0,86426.0,0.02611085]
[1743136951323,0.0308,86430.0,86425.0,0.231414]
[1743136951523,0.0308,86430.0,86423.0,0.231418]
[1743136951741,0.0308,86430.0,86408.0,0.01454085]
[1743136951971,0.00289259,86429.0,86413.0,0.231444]
[1743136952167,0.01828443,86427.0,86413.0,0.231444]
[1743136952365,0.00061069,86424.0,86405.0,0.231467]
[1743136952595,0.05219306,86423.0,86399.0,0.231483]
[1743136952739,0.02294941,86414.0,86411.0,0.23145]
[1743136952945,0.02294941,86414.0,86410.0,0.23145]
[1743136953151,0.02294941,86414.0,86409.0,0.231456]
[1743136953355,0.02294941,86414.0,86411.0,0.231449]
[1743136953550,0.06967262,86413.0,86409.0,0.231454]
[1743136953752,0.06967262,86413.0,86411.0,0.23145]
[1743136954210,0.06967262,86413.0,86412.0,0.011572]
[1743136954410,0.06967262,86413.0,86412.0,0.02611285]
[1743136954796,0.06967262,86413.0,86412.0,0.14037049]
[1743136954948,0.16967262,86413.0,86412.0,0.14386371]
[1743136955525,0.14705445,86413.0,86412.0,0.14386371]
[1743136955688,0.12122164,86413.0,86412.0,0.25812135]
[1743136956274,0.00061069,86449.0,86424.0,0.231415]
[1743136956486,0.02345027,86440.0,86426.0,0.25752185]
[1743136956746,0.00061069,86448.0,86426.0,0.37177949]
[1743136956970,0.00061069,86449.0,86426.0,0.37177949]
[1743136957172,0.00061069,86448.0,86426.0,0.37177949]
[1743136957395,0.0181494,86439.0,86426.0,0.37177949]
[1743136957784,0.0181494,86439.0,86426.0,0.37377949]
[1743136958141,0.02356621,86440.0,86426.0,0.37377949]
[1743136960072,0.11921087,86447.0,86426.0,0.37377949]
[1743136960246,0.02305303,86433.0,86426.0,0.25952185]
[1743136961193,0.02360489,86435.0,86426.0,0.25952185]
[1743136962048,0.01814974,86439.0,86426.0,0.25952185]
[1743136962466,0.02262406,86435.0,86426.0,0.25752185]
[1743136962674,0.0814,86450.0,86426.0,0.37277949]
[1743136962869,0.02318056,86437.0,86426.0,0.37277949]
[1743136963147,0.02318056,86437.0,86426.0,0.37177949]
[1743136963880,0.02318056,86437.0,86426.0,0.37377949]
[1743136964045,0.02318056,86437.0,86426.0,0.44490598]
[1743136965129,0.02318056,86437.0,86426.0,0.37377949]
[1743136965468,0.00047172,86427.0,86426.0,0.37727271]
[1743136966088,0.00047172,86427.0,86426.0,0.38582629]
[1743136966292,0.00047172,86427.0,86426.0,0.38382629]
[1743136966686,0.00047172,86427.0,86426.0,0.38682629]
[1743136967011,0.00047172,86427.0,86426.0,0.38333307]
[1743136967359,0.00047172,86427.0,86426.0,0.4123753]
[1743136968305,0.00047172,86427.0,86426.0,0.9632153]
[1743136968731,0.02389907,86427.0,86426.0,0.93417307]
[1743136969481,0.00047172,86427.0,86426.0,0.93417307]
[1743136970475,0.00047172,86427.0,86426.0,0.90806222]
[1743136970860,0.00047172,86427.0,86426.0,0.91963222]
[1743136971265,0.00047172,86427.0,86426.0,0.80537458]
[1743136971472,0.12397172,86427.0,86426.0,0.785251]
[1743136971675,0.12397172,86427.0,86426.0,0.796821]
[1743136972073,0.12397172,86427.0,86426.0,0.9031157]
[1743136972238,0.00047172,86427.0,86426.0,0.9031157]
[1743136972442,0.00047172,86427.0,86426.0,0.9001157]
[1743136972888,0.00047172,86427.0,86426.0,0.9021157]
[1743136973111,0.00047172,86427.0,86426.0,1.03091419]
[1743136973317,0.00047172,86427.0,86426.0,1.02891419]
[1743136973688,0.00047172,86427.0,86426.0,1.03191419]
[1743136974224,0.1,86436.0,86435.0,0.24644922]
[1743136974506,0.1,86436.0,86435.0,0.42185281]
[1743136974711,0.1,86436.0,86435.0,0.242956]
[1743136975336,0.02367078,86446.0,86445.0,0.25746885]
[1743136975541,0.03076,86453.0,86452.0,0.242909]
[1743136976162,0.03076,86453.0,86452.0,0.231342]
[1743136976365,0.05434065,86453.0,86452.0,0.231342]
[1743136977203,0.05434065,86453.0,86452.0,0.3019032]
[1743136977410,0.05434065,86453.0,86452.0,0.3134702]
[1743136977813,0.05434065,86453.0,86452.0,0.242909]
[1743136978014,0.05434065,86453.0,86452.0,0.231342]
[1743136978215,0.05434065,86453.0,86450.0,0.242912]
[1743136978216,0.05434065,86453.0,86450.0,0.231345]
[1743136978418,0.05434065,86453.0,86420.0,0.462851]
[1743136978419,0.05434065,86453.0,86444.0,0.231361]
[1743136978569,0.05434065,86453.0,86452.0,0.231342]
[1743136978774,0.05434065,86453.0,86450.0,0.231347]
[1743136978975,0.05434065,86453.0,86448.0,0.231352]
[1743136979355,0.00061069,86451.0,86433.0,0.242959]
[1743136979559,0.00061069,86451.0,86436.0,0.011569]
[1743136979754,0.00061069,86451.0,86449.0,0.231348]
[1743136979988,0.00061069,86452.0,86451.0,0.231344]
[1743136980429,0.01875718,86452.0,86451.0,0.231344]
[1743136980950,0.01814649,86452.0,86451.0,0.290337]
[1743136981200,0.01875718,86452.0,86449.0,0.231348]
[1743136981404,0.00061069,86451.0,86447.0,0.231352]
[1743136981552,0.00061069,86451.0,86439.0,0.231375]
[1743136981749,0.00061069,86451.0,86440.0,0.011568]
[1743136981948,0.00061069,86451.0,86448.0,0.231351]
[1743136982355,0.00061069,86451.0,86447.0,0.231353]
[1743136982852,0.00061069,86451.0,86448.0,0.231352]
[1743136983056,0.00061069,86451.0,86446.0,0.231358]
[1743136983188,0.00061069,86451.0,86439.0,0.011568]
[1743136983388,0.00061069,86449.0,86439.0,0.231375]
[1743136983673,0.00061069,86448.0,86440.0,0.231374]
[1743136983899,0.00061069,86448.0,86446.0,0.231355]
[1743136984099,0.00061069,86449.0,86442.0,0.011568]
[1743136984303,0.00061069,86448.0,86443.0,0.231366]
[1743136984450,0.02338381,86447.0,86444.0,0.231361]
[1743136984836,0.02338381,86447.0,86441.0,0.231369]
[1743136985038,0.02338381,86447.0,86443.0,0.231366]
[1743136985399,0.02338381,86447.0,86445.0,0.231358]
[1743136985579,0.02338381,86447.0,86440.0,0.011568]
[1743136985987,0.02338381,86447.0,86438.0,0.011568]
[1743136986135,0.02338381,86447.0,86443.0,0.231365]
[1743136986540,0.02338381,86447.0,86436.0,0.231384]
[1743136986770,0.00061069,86440.0,86426.0,0.55084]
[1743136986963,0.00061069,86440.0,86435.0,0.231385]
[1743136987191,0.00061069,86443.0,86442.0,0.231369]
[1743136987454,0.12771069,86446.0,86444.0,0.231363]
[1743136987583,0.00061069,86442.0,86439.0,0.011568]
[1743136987789,0.01814738,86443.0,86439.0,0.011568]
[1743136987989,0.01814738,86443.0,86441.0,0.242939]
[1743136988189,0.01814738,86443.0,86442.0,0.02610885]
[1743136988458,0.13089356,86453.0,86450.0,0.231345]
[1743136988617,0.13089356,86453.0,86452.0,0.242909]
[1743136988816,0.15453701,86453.0,86452.0,0.242909]
[1743136989031,0.15453701,86453.0,86452.0,0.231342]
[1743136989412,0.15453701,86453.0,86451.0,0.231344]
[1743136989641,0.1551477,86453.0,86445.0,0.231358]
[1743136989841,0.1551477,86453.0,86442.0,0.301368]
[1743136990045,0.13150425,86453.0,86451.0,0.231343]
[1743136990458,0.02346228,86452.0,86451.0,0.231343]
[1743136990662,0.02346228,86452.0,86449.0,0.231349]
[1743136990813,0.02346228,86452.0,86451.0,0.231344]
[1743136991224,0.02346228,86452.0,86447.0,0.231354]
[1743136991225,0.0003386,86451.0,86447.0,0.231354]
[1743136991425,0.0003386,86451.0,86445.0,0.23136]
[1743136991426,0.00094929,86451.0,86449.0,0.242917]
[1743136991846,0.00094929,86451.0,86449.0,0.23135]
[1743136992012,0.00094929,86451.0,86450.0,0.231347]
[1743136992243,0.00094929,86451.0,86450.0,0.242914]
[1743136992590,0.0003386,86451.0,86450.0,0.242914]
[1743136993583,0.0003386,86451.0,86450.0,1.19773164]
[1743136993999,0.0003386,86451.0,86450.0,1.21227249]
[1743136994216,0.10013356,86453.0,86452.0,0.242909]
[1743136994426,0.06568602,86453.0,86452.0,0.37070749]
[1743136994670,0.03090646,86453.0,86452.0,0.37070749]
[1743136995027,0.00013356,86453.0,86452.0,0.37070749]
[1743136995245,0.00013356,86453.0,86452.0,0.36970749]
[1743136995412,0.00013356,86453.0,86452.0,1.03472513]
[1743136995616,0.00013356,86453.0,86452.0,0.48396513]
[1743136996667,0.00013356,86453.0,86452.0,0.48496513]
[1743136997377,0.00013356,86453.0,86452.0,0.37070749]
[1743136998121,0.00013356,86453.0,86452.0,0.92142749]
[1743136998293,0.00013356,86453.0,86452.0,0.66050749]
[1743136999348,0.00013356,86453.0,86452.0,1.21122749]
[1743136999646,0.00013356,86453.0,86452.0,1.218904]
[1743136999875,0.00013356,86453.0,86452.0,1.33516164]
[1743137000199,0.00013356,86453.0,86452.0,1.33316164]
[1743137000401,0.00013356,86453.0,86452.0,1.09010551]
[1743137000611,0.00013356,86453.0,86452.0,1.10764636]
[1743137000809,0.00013356,86453.0,86452.0,1.10646116]
[1743137001485,0.00013356,86453.0,86452.0,1.2207188]
[1743137002475,0.00013356,86453.0,86452.0,1.2177188]
[1743137002841,0.00013356,86453.0,86452.0,1.33497644]
[1743137003318,0.00013356,86453.0,86452.0,1.33197644]
[1743137003576,0.00013356,86453.0,86452.0,1.33497644]
[1743137004015,0.00013356,86453.0,86452.0,1.2207188]
[1743137004219,0.00047216,86453.0,86452.0,1.2207188]
[1743137011458,0.00047216,86453.0,86452.0,1.5207188]
[1743137011666,1.6e-07,86453.0,86452.0,1.5207188]
[1743137012322,0.0226,86478.0,86464.0,0.242875]
[1743137012554,0.0226,86478.0,86475.0,0.25138485]
[1743137012555,0.023523,86476.0,86475.0,0.25138485]
[1743137012780,0.023523,86476.0,86475.0,0.36564249]
[1743137013401,0.023523,86476.0,86475.0,0.25138485]
[1743137013611,0.023523,86476.0,86472.0,0.231288]
[1743137013826,0.00061069,86471.0,86465.0,0.28979984]
[1743137014034,0.0466,86470.0,86466.0,0.231304]
[1743137014244,0.0466,86470.0,86468.0,0.231298]
[1743137014686,0.0466,86470.0,86469.0,0.011564]
[1743137015129,0.0466,86470.0,86469.0,0.03633633]
[1743137015486,0.0466,86470.0,86469.0,0.011564]
[1743137016631,0.0466,86470.0,86469.0,0.02610485]
[1743137016832,0.04166532,86476.0,86475.0,0.242844]
[1743137017006,0.023523,86476.0,86475.0,0.25738485]
[1743137017213,0.023523,86476.0,86475.0,0.36770308]
[1743137017595,0.023523,86476.0,86475.0,0.36622308]
[1743137017996,0.023523,86476.0,86475.0,0.65602292]
[1743137018219,0.023523,86476.0,86475.0,0.77028056]
[1743137018747,0.0003386,86476.0,86475.0,0.77028056]
[1743137018988,0.02404915,86476.0,86475.0,0.77028056]
[1743137019804,0.02404915,86476.0,86475.0,0.65996233]
[1743137020214,0.02404915,86476.0,86475.0,0.66196233]
[1743137020555,0.0003386,86476.0,86475.0,0.66196233]
[1743137022247,0.0003386,86476.0,86475.0,0.54570469]
[1743137022655,0.0003386,86476.0,86475.0,0.54770469]
[1743137022866,0.0003386,86476.0,86475.0,0.53762069]
[1743137023067,0.0003386,86476.0,86475.0,0.54718469]
[1743137023471,0.0003386,86476.0,86475.0,0.53264384]
[1743137023675,0.0003386,86476.0,86475.0,0.53464384]
[1743137023874,0.0003386,86476.0,86475.0,0.54918469]
[1743137024103,0.0003386,86476.0,86475.0,0.7669313]
[1743137025287,0.0474388,86486.0,86481.0,0.242827]
[1743137025288,0.0003388,86486.0,86481.0,0.242827]
[1743137025561,0.0003388,86486.0,86485.0,0.242815]
[1743137025759,0.02373141,86498.0,86488.0,0.242807]
[1743137025957,0.02373141,86498.0,86488.0,0.37160549]
[1743137026303,0.02032,86499.0,86488.0,0.48586313]
[1743137026508,0.04310919,86499.0,86488.0,0.48586313]
[1743137026707,0.02032,86499.0,86488.0,0.48586313]
[1743137027113,0.04328989,86499.0,86488.0,0.48586313]
[1743137028481,0.02032,86499.0,86488.0,1.07966297]
[1743137028664,0.02032,86499.0,86495.0,0.542788]
[1743137028858,0.02032,86499.0,86495.0,0.67158649]
[1743137029837,0.04317174,86499.0,86495.0,0.67158649]
[1743137030299,0.04317174,86499.0,86495.0,0.67358649]
[1743137030505,0.04317174,86499.0,86495.0,0.78784413]
[1743137031108,0.04317174,86499.0,86495.0,0.37358649]
[1743137031336,0.04378243,86499.0,86495.0,0.002]
[1743137031542,0.00094929,86496.0,86495.0,0.231227]
[1743137031748,0.00094929,86496.0,86495.0,0.242788]
[1743137031942,0.00094929,86496.0,86495.0,0.246788]
[1743137032337,0.00094929,86496.0,86495.0,0.242788]
[1743137032837,0.00094929,86496.0,86495.0,0.234227]
[1743137033225,0.00094929,86496.0,86495.0,0.231227]
[1743137033560,0.00094929,86496.0,86495.0,0.001]
[1743137033764,0.04684929,86496.0,86495.0,0.001]
[1743137034999,0.04684929,86496.0,86495.0,0.0854992]
[1743137035180,0.04684929,86496.0,86495.0,0.001]
[1743137035557,0.12644929,86496.0,86495.0,0.001]
[1743137035773,0.12795607,86496.0,86495.0,0.001]
[1743137036822,0.12795607,86496.0,86481.0,0.011563]
[1743137036823,0.00061069,86477.0,86476.0,0.52107784]
[1743137037060,0.07791069,86477.0,86476.0,0.28993337]
[1743137037814,0.07791069,86477.0,86476.0,0.30149637]
[1743137038270,0.07791069,86477.0,86476.0,0.28993337]
[1743137038471,0.07791069,86477.0,86476.0,0.30149637]
[1743137038674,0.07791069,86477.0,86476.0,0.31603722]
[1743137038921,0.07791069,86477.0,86476.0,0.43029486]
[1743137039071,0.00061069,86477.0,86476.0,0.43029486]
[1743137039278,0.0464,86488.0,86487.0,0.25735085]
[1743137039477,0.01981069,86489.0,86488.0,0.011562]
[1743137039721,0.01981069,86489.0,86488.0,0.12581964]
[1743137040299,0.04245585,86489.0,86488.0,0.14036049]
[1743137040534,0.04245585,86489.0,86488.0,0.12879849]
[1743137040735,0.04245585,86489.0,86488.0,0.01454085]
[1743137041298,0.00061069,86484.0,86480.0,0.231265]
[1743137041752,0.04184516,86489.0,86476.0,0.28993337]
[1743137041753,0.046,86477.0,86476.0,0.28993337]
[1743137041975,0.046,86477.0,86476.0,0.30447422]
[1743137042177,0.04661069,86477.0,86476.0,0.55065353]
[1743137042466,0.04661069,86477.0,86476.0,0.56221653]
[1743137042880,0.00061069,86454.0,86449.0,0.55052]
[1743137043079,0.0688,86453.0,86449.0,0.781868]
[1743137043299,0.06941069,86453.0,86436.0,0.0001693]
[1743137043505,0.14771069,86453.0,86443.0,0.55052]
[1743137043727,0.14771069,86453.0,86444.0,0.01454085]
[1743137043938,0.14921747,86453.0,86441.0,0.55052]
[1743137044515,0.17211662,86453.0,86441.0,0.55052]
[1743137045324,0.17211662,86453.0,86436.0,0.0001693]
[1743137047317,0.17411662,86453.0,86436.0,0.0001693]
[1743137047701,0.17211662,86453.0,86436.0,0.0001693]
[1743137048755,0.17611662,86453.0,86439.0,0.231376]
[1743137048995,0.17611662,86453.0,86437.0,0.231379]
[1743137049167,0.17611662,86453.0,86437.0,0.242948]
[1743137049371,0.17611662,86453.0,86437.0,0.231379]
[1743137049778,0.17611662,86453.0,86439.0,0.231375]
[1743137050211,0.15540984,86453.0,86450.0,0.242913]
[1743137050432,0.17464984,86453.0,86450.0,0.242913]
[1743137050641,0.17464984,86453.0,86452.0,0.30153614]
[1743137050642,0.04674984,86453.0,86452.0,0.30153614]
[1743137050810,0.04674984,86453.0,86452.0,0.31607699]
[1743137051381,0.04274984,86453.0,86452.0,0.31607699]
[1743137051582,0.04474984,86453.0,86452.0,0.31607699]
[1743137052226,0.04274984,86453.0,86452.0,0.31607699]
[1743137052430,0.04274984,86453.0,86452.0,0.30450999]
[1743137052655,0.04274984,86453.0,86452.0,0.31607699]
[1743137053427,0.04274984,86453.0,86452.0,0.28996914]
[1743137054810,0.04425662,86453.0,86452.0,0.0001693]
[1743137055022,0.02350984,86453.0,86452.0,0.0001693]
[1743137055226,0.04182984,86453.0,86452.0,0.0001693]
[1743137056976,0.04333662,86453.0,86452.0,0.0001693]
[1743137057573,0.04533662,86453.0,86452.0,0.0001693]
[1743137058175,0.04333662,86453.0,86452.0,0.0001693]
[1743137058371,0.04833662,86453.0,86452.0,0.0001693]
[1743137061062,0.47243662,86453.0,86452.0,0.0001693]
[1743137061401,0.07801747,86437.0,86436.0,0.0001693]
[1743137061610,0.12321747,86437.0,86436.0,0.00030286]
[1743137062007,0.42321747,86437.0,86436.0,0.00030286]
[1743137062677,0.44675909,86437.0,86436.0,0.00030286]
[1743137063108,0.4461484,86437.0,86436.0,0.00030286]
[1743137063255,0.02354162,86437.0,86436.0,0.01187186]
[1743137063623,0.02354162,86437.0,86436.0,0.38913084]
[1743137063798,0.02415231,86437.0,86436.0,0.30464355]
[1743137064032,0.02915231,86437.0,86436.0,0.54759755]
[1743137064212,0.02915231,86437.0,86436.0,0.30464355]
[1743137064412,0.02415231,86437.0,86436.0,0.30464355]
[1743137065585,0.02354162,86437.0,86436.0,0.31621255]
[1743137065878,0.02415231,86437.0,86436.0,0.31621255]
[1743137066173,0.02354162,86437.0,86436.0,0.31621255]
[1743137066386,0.01656,86437.0,86436.0,0.53613665]
[1743137066587,0.01656,86437.0,86436.0,0.43047019]
[1743137068734,0.01656,86437.0,86436.0,0.00030286]
[1743137068932,0.01656,86437.0,86436.0,0.01187186]
[1743137070264,0.01656,86437.0,86436.0,0.02641271]
[1743137070472,0.02348095,86441.0,86440.0,0.011568]
[1743137070672,0.04004095,86441.0,86440.0,0.02610885]
[1743137074475,0.04004095,86441.0,86440.0,0.02627805]
[1743137074956,0.04004095,86441.0,86440.0,0.31607789]
[1743137075253,0.04004095,86441.0,86440.0,0.43033553]
[1743137075462,0.03943026,86441.0,86440.0,0.43033553]
[1743137075702,0.03943026,86441.0,86440.0,0.54459317]
[1743137075870,0.01656,86441.0,86440.0,0.43033553]
[1743137081740,0.01656,86441.0,86440.0,0.31607789]
[1743137081947,0.01656,86441.0,86440.0,0.30450989]
[1743137082153,0.01656,86441.0,86440.0,0.28996904]
[1743137082364,0.02274734,86441.0,86440.0,0.28996904]
[1743137082570,0.01656,86441.0,86440.0,0.31607789]
[1743137083191,0.01656,86441.0,86440.0,0.30450989]
[1743137083389,0.01656,86441.0,86440.0,0.31607789]
[1743137085895,0.01656,86441.0,86440.0,0.30153704]
[1743137087562,0.01656,86441.0,86440.0,0.31607789]
[1743137091660,0.01717069,86441.0,86440.0,0.31607789]
[1743137091881,0.01656,86441.0,86440.0,0.31607789]
[1743137092288,0.01717069,86441.0,86440.0,0.31607789]
[1743137093214,0.01656,86441.0,86440.0,0.31607789]
[1743137093772,0.01656,86441.0,86440.0,0.43033553]
[1743137098191,0.01656,86441.0,86440.0,0.30153704]
[1743137098651,0.01656,86441.0,86440.0,0.31607789]
[1743137098854,0.10007069,86441.0,86440.0,0.52134304]
[1743137099485,0.12060481,86441.0,86440.0,0.0001692]
[1743137099717,0.42349691,86441.0,86440.0,0.0001692]
[1743137099942,0.42060481,86441.0,86440.0,0.0001692]
[1743137100378,0.43051747,86437.0,86436.0,0.00030286]
[1743137100594,0.43051747,86415.0,86414.0,0.0001694]
[1743137101055,0.43051747,86415.0,86414.0,0.00030232]
[1743137101679,0.55350127,86415.0,86414.0,0.00030232]
[1743137102116,0.55350127,86415.0,86408.0,0.95027467]
[1743137102117,0.00061069,86409.0,86408.0,0.95027467]
[1743137102323,0.00211747,86409.0,86408.0,0.95027467]
[1743137102935,0.05785261,86409.0,86408.0,0.95027467]
[1743137103151,0.07687995,86409.0,86408.0,0.95027467]
[1743137103369,0.05785261,86409.0,86408.0,0.95027467]
[1743137103577,0.05634583,86409.0,86408.0,0.96184767]
[1743137103780,0.05785261,86409.0,86408.0,0.96184767]
[1743137103990,0.05634583,86409.0,86408.0,0.96184767]
[1743137104202,0.05573514,86409.0,86408.0,1.07610531]
[1743137104413,0.05573514,86409.0,86408.0,0.96184767]
[1743137104414,0.05634583,86409.0,86408.0,0.96184767]
[1743137104626,0.05785261,86409.0,86408.0,0.95027467]
[1743137105038,0.00211747,86409.0,86408.0,0.95027467]
[1743137105244,0.00211747,86409.0,86408.0,0.94990472]
[1743137105423,0.00411747,86409.0,86408.0,0.94990472]
[1743137107064,0.08981747,86409.0,86408.0,0.94990472]
[1743137107480,0.14523741,86409.0,86408.0,0.96147772]
[1743137107708,0.14523741,86409.0,86408.0,0.94990472]
[1743137108119,0.14373063,86409.0,86408.0,1.0309802]
[1743137108325,0.14462672,86409.0,86408.0,0.96147772]
[1743137108533,0.14311994,86409.0,86408.0,0.96147772]
[1743137108935,0.14173063,86409.0,86408.0,0.96147772]
[1743137109359,0.14411994,86409.0,86408.0,0.96147772]
[1743137109534,0.14473063,86409.0,86408.0,0.96147772]
[1743137109914,0.11062605,86409.0,86408.0,0.96147772]
[1743137110779,0.10913283,86409.0,86408.0,0.94990472]
[1743137110973,0.11113283,86409.0,86408.0,0.94990472]
[1743137111641,0.41113283,86409.0,86408.0,0.95007412]
[1743137111852,0.48983283,86409.0,86408.0,0.95007412]
[1743137112260,0.53640425,86409.0,86408.0,0.95007412]
[1743137112686,0.53940425,86409.0,86408.0,0.95007412]
[1743137112864,0.58670425,86409.0,86408.0,0.95007412]
[1743137113109,0.58370425,86409.0,86408.0,0.95007412]
[1743137113540,0.58770425,86409.0,86408.0,0.95007412]
[1743137114196,0.60122425,86409.0,86408.0,1.10903152]
[1743137114407,0.60122425,86409.0,86408.0,0.87757152]
[1743137114611,0.60122425,86409.0,86408.0,1.12060452]
[1743137114785,0.60122425,86409.0,86408.0,1.10903152]
[1743137115194,0.47522425,86409.0,86408.0,1.10903152]
[1743137115391,0.47522425,86409.0,86408.0,0.87757152]
[1743137117417,0.46072536,86409.0,86408.0,0.87757152]
[1743137119748,0.46072536,86409.0,86408.0,0.82537206]
[1743137119966,0.45672536,86409.0,86408.0,0.82537206]
[1743137120169,0.55872552,86409.0,86408.0,0.82537206]
[1743137120376,0.60522552,86409.0,86408.0,0.82537206]
[1743137121847,0.75150552,86409.0,86408.0,0.82537206]
[1743137122075,0.75650552,86409.0,86408.0,0.82537206]
[1743137122602,0.75150552,86409.0,86408.0,0.82537206]
[1743137122811,0.75650552,86409.0,86408.0,0.82537206]
[1743137123417,0.75650552,86409.0,86408.0,0.72386406]
[1743137123895,0.77991457,86409.0,86408.0,0.72386406]
[1743137125430,0.77491457,86409.0,86408.0,0.65135157]
[1743137125975,0.77991457,86409.0,86408.0,0.65135157]
[1743137126182,0.77991457,86409.0,86408.0,0.59218424]
[1743137126298,0.77991457,86409.0,86408.0,0.33598424]
[1743137126731,0.77491457,86409.0,86408.0,0.33598424]
[1743137127581,0.77491457,86409.0,86408.0,0.33388424]
[1743137128413,0.77991457,86409.0,86408.0,0.33388424]
[1743137129004,0.76639457,86409.0,86408.0,0.33388424]
[1743137129249,0.77995457,86409.0,86408.0,0.33388424]
[1743137129462,0.77495457,86409.0,86408.0,0.33388424]
[1743137129665,0.77495457,86409.0,86408.0,0.33188424]
[1743137129875,0.73138188,86409.0,86408.0,0.33188424]
[1743137130878,0.71006652,86409.0,86408.0,0.33188424]
[1743137133166,1.03718552,86409.0,86408.0,0.33188424]
[1743137133497,0.55878652,86409.0,86408.0,0.33188424]
[1743137134132,0.55912532,86409.0,86408.0,0.33188424]
[1743137134308,1.96187032,86409.0,86408.0,0.33188424]
[1743137134509,0.97125732,86409.0,86408.0,0.33188424]
[1743137134711,0.51262532,86409.0,86408.0,0.33188424]
[1743137135150,0.41607463,86409.0,86408.0,0.33188424]
[1743137135298,0.12960532,86409.0,86408.0,0.33188424]
[1743137135696,0.42960532,86409.0,86408.0,0.33188424]
[1743137135969,0.12960532,86409.0,86408.0,0.33188424]
[1743137137016,0.42960532,86409.0,86408.0,0.33188424]
[1743137137351,0.58432732,86409.0,86408.0,0.33188424]
[1743137137809,0.42960532,86409.0,86408.0,0.33188424]
[1743137138234,1.33505132,86409.0,86408.0,0.33188424]
[1743137138432,0.42960532,86409.0,86408.0,0.33188424]
[1743137139452,4.23747332,86409.0,86408.0,0.33188424]
[1743137140273,4.2954829,86409.0,86408.0,0.33188424]
[1743137141241,4.42202375,86409.0,86408.0,0.33188424]
[1743137142064,4.42202375,86409.0,86408.0,0.2013401]
[1743137144325,4.41702375,86409.0,86408.0,0.2013401]
[1743137144534,0.43211747,86400.0,86399.0,0.0001693]
[1743137144737,0.59665832,86400.0,86399.0,0.0001693]
[1743137145176,0.40711747,86390.0,86389.0,0.0001693]
[1743137145377,4.22952632,86390.0,86389.0,0.0001693]
[1743137145587,4.24075218,86390.0,86389.0,0.0001693]
[1743137145798,3.47230818,86390.0,86389.0,0.0001693]
[1743137146212,3.30906418,86390.0,86389.0,0.0001693]
[1743137146412,3.25223618,86390.0,86389.0,0.0001693]
[1743137146961,2.54539132,86390.0,86389.0,0.0001693]
[1743137147386,2.56807364,86390.0,86389.0,0.0001693]
[1743137147568,2.57307364,86390.0,86389.0,0.0001693]
[1743137148233,0.00211747,86366.0,86345.0,0.0814]
[1743137148412,0.31507747,86366.0,86337.0,0.081]
[1743137148784,0.31507747,86366.0,86338.0,0.243227]
[1743137148948,0.31507747,86366.0,86337.0,0.081]
[1743137148949,0.41507747,86366.0,86337.0,0.081]
[1743137149357,0.41507747,86366.0,86337.0,0.092582]
[1743137149564,0.41521068,86366.0,86337.0,0.081]
[1743137150025,1.57556268,86366.0,86337.0,0.081]
[1743137150249,0.42021068,86366.0,86337.0,0.081]
[1743137150650,1.46386368,86366.0,86337.0,0.081]
[1743137150954,1.50142768,86366.0,86337.0,0.081]
[1743137151651,0.89532668,86366.0,86337.0,0.081]
[1743137152162,0.64712468,86366.0,86343.0,0.011581]
[1743137152391,0.40725068,86366.0,86351.0,0.233611]
[1743137152591,0.42021068,86366.0,86351.0,0.002]
[1743137153110,0.41959999,86366.0,86351.0,0.002]
[1743137153310,0.41963999,86366.0,86355.0,0.01158]
[1743137153538,0.41963999,86366.0,86352.0,0.01158]
[1743137153539,0.42025068,86366.0,86354.0,0.0498]
[1743137154394,0.42025068,86366.0,86359.0,0.0779]
[1743137154920,0.1187439,86366.0,86364.0,0.243155]
[1743137155117,0.11963999,86366.0,86365.0,0.0117473]
[1743137155327,0.11963999,86366.0,86365.0,0.0001693]
[1743137155480,0.1428006,86366.0,86365.0,0.2433223]
[1743137156115,0.04341129,86366.0,86365.0,0.2433223]
[1743137156282,0.03841129,86366.0,86365.0,0.2433223]
[1743137156492,0.04141129,86366.0,86365.0,0.2433223]
[1743137156696,0.0408006,86366.0,86365.0,0.2433223]
[1743137156901,0.04141129,86366.0,86365.0,0.2433223]
[1743137157062,0.0408006,86366.0,86365.0,0.2433223]
[1743137157266,0.04141129,86366.0,86365.0,0.2433223]
[1743137157480,0.0408006,86366.0,86365.0,0.2433223]
[1743137158569,0.04141129,86366.0,86365.0,0.0001693]
[1743137159037,0.04141129,86366.0,86365.0,0.2317443]
[1743137159252,0.03841129,86366.0,86365.0,0.2317443]
[1743137159493,0.03841129,86366.0,86365.0,0.0001693]
[1743137159737,0.04141129,86366.0,86365.0,0.0001693]
[1743137159992,0.04141129,86366.0,86365.0,0.2317443]
[1743137160255,0.03841129,86366.0,86365.0,0.2317443]
[1743137160499,0.04141129,86366.0,86365.0,0.2433223]
[1743137160970,0.04141129,86366.0,86365.0,0.0001693]
[1743137161397,0.03857129,86366.0,86365.0,0.0001693]
[1743137161816,0.33857129,86366.0,86365.0,0.0001693]
[1743137162261,0.32709129,86366.0,86365.0,0.0001693]